bitfinex/quotes_BTCUSD_20260315
["timestamp","ask_amount","ask_price","bid_price","bid_amount"]
[1773594248565,0.07393504,71449.0,71439.0,0.05875469]
[1773594248781,0.07393504,71449.0,71431.0,0.07944505]
[1773594248955,0.069979,71450.0,71431.0,0.07944505]
[1773594249297,0.07393504,71449.0,71431.0,0.07944505]
[1773594250186,0.06998096,71448.0,71432.0,0.06999664]
[1773594250391,0.06998019,71449.0,71438.0,0.05875469]
[1773594250591,0.06998019,71449.0,71439.0,0.0014]
[1773594252371,0.14391523,71449.0,71439.0,0.0713897]
[1773594258942,0.14391523,71449.0,71439.0,0.13014439]
[1773594259101,0.06998019,71449.0,71439.0,0.13014439]
[1773594260439,0.06998019,71449.0,71439.0,0.07138965]
[1773594262402,0.14139911,71449.0,71439.0,0.07138965]
[1773594262598,0.06998019,71449.0,71439.0,0.07138965]
[1773594262823,0.07019847,71451.0,71439.0,0.13014434]
[1773594263807,0.00022001,71451.0,71439.0,0.13014434]
[1773594264053,0.07019837,71451.0,71439.0,0.13014434]
[1773594267062,0.14161729,71451.0,71439.0,0.13014434]
[1773594267235,0.14161729,71451.0,71439.0,0.07138965]
[1773594272091,0.14111729,71451.0,71439.0,0.07138965]
[1773594276322,0.1413373,71451.0,71439.0,0.07138965]
[1773594283867,0.1413373,71451.0,71439.0,0.07158965]
[1773594285883,0.07019849,71451.0,71439.0,0.07158965]
[1773594287564,0.07019849,71451.0,71440.0,0.05875469]
[1773594287965,0.07019849,71451.0,71441.0,0.06998782]
[1773594293388,0.07019849,71451.0,71441.0,0.07018782]
[1773594298853,0.07019849,71451.0,71438.0,0.06029813]
[1773594299056,0.07019849,71451.0,71440.0,0.0699883]
[1773594300025,0.07019849,71451.0,71441.0,0.0014]
[1773594301171,0.07019849,71451.0,71433.0,0.14042562]
[1773594301172,0.07545922,71450.0,71428.0,0.0001423]
[1773594301371,0.07545922,71449.0,71428.0,0.07014281]
[1773594301533,0.07545922,71448.0,71428.0,0.07014281]
[1773594301739,0.13987666,71448.0,71428.0,0.07014281]
[1773594301940,0.07545922,71447.0,71428.0,0.07014281]
[1773594302140,0.07545922,71445.0,71428.0,0.0001423]
[1773594302362,0.07545922,71445.0,71441.0,0.0002]
[1773594302545,0.07545922,71445.0,71442.0,0.0014]
[1773594302749,0.07545922,71445.0,71433.0,0.0002]
[1773594303311,0.00022001,71451.0,71435.0,0.05875469]
[1773594303608,0.07019823,71451.0,71440.0,0.05875469]
[1773594303783,0.00022001,71451.0,71440.0,0.05875469]
[1773594304082,0.00022001,71451.0,71442.0,0.06998684]
[1773594305186,0.07019809,71451.0,71442.0,0.06998684]
[1773594306895,0.07019809,71451.0,71441.0,0.07138684]
[1773594306896,0.07019809,71451.0,71441.0,0.07138732]
[1773594307259,0.07019809,71451.0,71441.0,0.0014]
[1773594309675,0.07019809,71451.0,71441.0,0.0016]
[1773594315862,0.07545922,71450.0,71441.0,0.0002]
[1773594316092,0.07545922,71450.0,71438.0,0.06999021]
[1773594316494,0.07019809,71451.0,71440.0,0.05872574]
[1773594317178,0.07019809,71451.0,71441.0,0.0014]
[1773594319471,0.07019809,71451.0,71441.0,0.07138782]
[1773594321939,0.07019809,71451.0,71441.0,0.07158782]
[1773594322863,0.07019809,71451.0,71441.0,0.0016]
[1773594323022,0.07401639,71450.0,71441.0,0.0016]
[1773594324270,0.06997998,71449.0,71441.0,0.0016]
[1773594325165,0.06997998,71449.0,71441.0,0.07158695]
[1773594327869,0.06997949,71450.0,71441.0,0.07158695]
[1773594328087,0.07019895,71451.0,71441.0,0.07158695]
[1773594328301,0.00027001,71452.0,71442.0,0.07142119]
[1773594328499,0.00022001,71459.0,71445.0,0.07142119]
[1773594328699,0.13970664,71467.0,71450.0,0.07142119]
[1773594328845,0.13970664,71467.0,71443.0,0.0001284]
[1773594328846,0.07009002,71468.0,71456.0,0.05872574]
[1773594329045,0.06996283,71467.0,71457.0,0.0014]
[1773594329454,0.07018351,71466.0,71457.0,0.0014]
[1773594329759,0.07054116,71466.0,71457.0,0.0014]
[1773594330107,0.07401639,71465.0,71458.0,0.0014]
[1773594330267,0.07401639,71465.0,71452.0,0.06997698]
[1773594331248,0.07401639,71465.0,71450.0,0.05872574]
[1773594331249,0.07421929,71465.0,71442.0,0.14140762]
[1773594331520,0.07421929,71465.0,71443.0,0.0014]
[1773594331718,0.06996529,71464.0,71445.0,0.0699839]
[1773594331899,0.07401639,71463.0,71445.0,0.0699839]
[1773594334360,0.06996725,71462.0,71445.0,0.0699839]
[1773594334566,0.07401639,71461.0,71445.0,0.0699839]
[1773594335167,0.07401639,71461.0,71446.0,0.0014]
[1773594336680,0.06996921,71460.0,71447.0,0.06998194]
[1773594337057,0.1439856,71460.0,71447.0,0.06998194]
[1773594337601,0.07401639,71459.0,71447.0,0.06998194]
[1773594339190,0.06997117,71458.0,71447.0,0.06998194]
[1773594342716,0.07401639,71457.0,71447.0,0.06998194]
[1773594346029,0.07401639,71457.0,71446.0,0.0014]
[1773594346030,0.07401639,71455.0,71446.0,0.0014]
[1773594346535,0.07401639,71455.0,71447.0,0.0014]
[1773594348631,0.07401639,71453.0,71447.0,0.0014]
[1773594351467,0.07401639,71451.0,71447.0,0.0014]
[1773594354591,0.069979,71450.0,71447.0,0.0014]
[1773594355768,0.07077206,71449.0,71432.0,0.06999648]
[1773594355977,0.07077206,71449.0,71420.0,0.05872574]
[1773594356184,0.07077206,71449.0,71429.0,0.07019945]
[1773594356804,0.06998096,71448.0,71429.0,0.07019945]
[1773594357108,0.07077206,71447.0,71430.0,0.0014]
[1773594357406,0.07077206,71447.0,71431.0,0.0014]
[1773594358923,0.069979,71450.0,71432.0,0.06999664]
[1773594359275,0.14075106,71450.0,71432.0,0.06999664]
[1773594360893,0.07077206,71449.0,71432.0,0.06999664]
[1773594363309,0.06998096,71448.0,71432.0,0.06999664]
[1773594366221,0.07077206,71447.0,71430.0,0.0002]
[1773594366414,0.07077206,71447.0,71429.0,5.003e-05]
[1773594366824,0.07077206,71447.0,71426.0,0.0002]
[1773594367224,0.07077206,71447.0,71432.0,0.0002]
[1773594367420,0.07077206,71447.0,71433.0,0.0014]
[1773594367663,0.07077206,71442.0,71433.0,0.0014]
[1773594368101,0.06998782,71441.0,71433.0,0.0014]
[1773594368233,0.07077206,71440.0,71433.0,0.0014]
[1773594369357,0.07077206,71440.0,71426.0,0.0002]
[1773594370189,0.07077206,71438.0,71426.0,0.0002]
[1773594370543,0.07077206,71438.0,71427.0,0.0014]
[1773594372231,0.07077206,71436.0,71427.0,0.0014]
[1773594372431,0.06998625,71443.0,71427.0,0.0014]
[1773594372633,0.07034368,71443.0,71430.0,0.05875948]
[1773594372930,0.07077206,71442.0,71427.0,0.07140129]
[1773594373690,0.07034368,71443.0,71430.0,0.05875948]
[1773594374283,0.07034368,71443.0,71430.0,0.12875757]
[1773594375134,0.14111574,71443.0,71429.0,0.0699986]
[1773594378800,0.14111574,71443.0,71430.0,0.05875948]
[1773594381194,0.14111574,71443.0,71431.0,0.06999762]
[1773594384250,0.07034368,71443.0,71431.0,0.06999762]
[1773594384411,0.00035743,71443.0,71432.0,0.03684937]
[1773594384614,0.00035743,71443.0,71433.0,0.0014]
[1773594386207,0.00035743,71443.0,71434.0,0.06999468]
[1773594388206,0.07034336,71443.0,71434.0,0.06999468]
[1773594388618,0.00035743,71443.0,71434.0,0.06999468]
[1773594389029,0.0703441,71443.0,71433.0,0.0014]
[1773594389230,0.0710988,71442.0,71434.0,0.0014]
[1773594389476,0.0710988,71442.0,71431.0,0.07019679]
[1773594389632,0.0710988,71442.0,71435.0,0.0014]
[1773594389834,0.0710988,71442.0,71431.0,0.06999679]
[1773594390970,0.06998782,71441.0,71432.0,0.0014]
[1773594391170,0.14108567,71442.0,71432.0,0.0014]
[1773594391777,0.00035743,71443.0,71432.0,0.0014]
[1773594391976,0.07034369,71443.0,71432.0,0.0014]
[1773594397945,0.07034369,71443.0,71432.0,0.07139651]
[1773594399131,0.14144249,71443.0,71432.0,0.07139651]
[1773594400080,0.1416625,71443.0,71432.0,0.07139651]
[1773594412136,0.07243326,71442.0,71430.0,0.0002]
[1773594412365,0.07243326,71442.0,71427.0,0.0002]
[1773594412725,0.07243326,71441.0,71427.0,0.0002]
[1773594413137,0.07243326,71441.0,71422.0,0.07000451]
[1773594413339,0.07243326,71439.0,71423.0,0.0014]
[1773594414007,0.07243326,71439.0,71429.0,0.05875948]
[1773594414137,0.07243326,71439.0,71430.0,0.0014]
[1773594417419,0.0705637,71443.0,71430.0,0.0014]
[1773594417420,0.06997774,71452.0,71441.0,0.04139723]
[1773594417597,0.06997774,71452.0,71430.0,0.07152703]
[1773594417598,0.0702481,71451.0,71442.0,0.0014]
[1773594417814,0.14268136,71451.0,71443.0,0.0014]
[1773594418123,0.14268136,71451.0,71444.0,0.0014]
[1773594419538,0.00022001,71453.0,71444.0,0.0713839]
[1773594419985,0.07019614,71453.0,71444.0,0.0713839]
[1773594422060,0.07019614,71453.0,71444.0,0.0014]
[1773594422261,0.07243326,71452.0,71437.0,0.07012261]
[1773594422588,0.07243326,71452.0,71437.0,0.00018181]
[1773594422863,0.07243326,71452.0,71437.0,0.07017306]
[1773594423442,0.07243326,71452.0,71438.0,0.0014]
[1773594423648,0.07243326,71452.0,71437.0,0.07017306]
[1773594423843,0.07243326,71452.0,71438.0,0.0014]
[1773594424248,0.07243326,71450.0,71439.0,0.0014]
[1773594425270,0.07243326,71450.0,71440.0,0.0014]
[1773594426056,0.07243326,71450.0,71441.0,0.0014]
[1773594426752,0.07243326,71448.0,71430.0,0.0002]
[1773594426953,0.07243326,71448.0,71431.0,0.0014]
[1773594427498,0.07243326,71448.0,71430.0,0.00055743]
[1773594427702,0.07243326,71448.0,71432.0,0.0014]
[1773594428082,0.07243326,71448.0,71433.0,0.0014]
[1773594430100,0.07243326,71446.0,71433.0,0.0014]
[1773594430890,0.07243326,71446.0,71433.0,0.07139526]
[1773594432614,0.0699839,71445.0,71433.0,0.07159526]
[1773594433319,0.0699839,71445.0,71433.0,0.0016]
[1773594433876,0.07243326,71444.0,71433.0,0.0016]
[1773594435095,0.06998194,71447.0,71434.0,0.06999468]
[1773594435991,0.1424152,71447.0,71434.0,0.06999468]
[1773594438794,0.1424152,71447.0,71433.0,0.07159468]
[1773594440173,0.07243326,71448.0,71433.0,0.07159468]
[1773594440316,0.07243326,71448.0,71434.0,0.0002]
[1773594443502,0.06967289,71446.0,71434.0,0.0002]
[1773594447269,0.0699839,71445.0,71434.0,0.0002]
[1773594449956,0.0699839,71445.0,71434.0,0.07019417]
[1773594458344,0.06967289,71444.0,71434.0,0.0002]
[1773594458547,0.06967289,71444.0,71433.0,0.07159468]
[1773594461287,0.13965875,71443.0,71433.0,0.07159468]
[1773594461497,0.13965875,71443.0,71434.0,0.0014]
[1773594464411,0.06998551,71444.0,71434.0,0.0014]
[1773594464612,0.06998551,71444.0,71434.0,0.07139462]
[1773594465676,0.0699839,71445.0,71434.0,0.07159462]
[1773594466069,0.07020391,71445.0,71434.0,0.07159462]
[1773594469570,0.00022001,71445.0,71434.0,0.07159462]
[1773594469965,0.07020458,71445.0,71434.0,0.07159462]
[1773594470388,0.06967289,71444.0,71434.0,0.07159462]
[1773594473123,0.06967289,71442.0,71434.0,0.07019462]
[1773594473318,0.06967289,71442.0,71435.0,0.0014]
[1773594475725,0.06998586,71444.0,71435.0,0.0014]
[1773594475926,0.13956863,71444.0,71435.0,0.0014]
[1773594476091,0.06998586,71444.0,71435.0,0.0014]
[1773594476290,0.06958277,71443.0,71435.0,0.0014]
[1773594476696,0.1395687,71443.0,71435.0,0.02806]
[1773594479531,0.06998593,71443.0,71435.0,0.0284434]
[1773594479737,0.06978488,71444.0,71435.0,0.0284434]
[1773594479936,0.00022001,71445.0,71435.0,0.09843631]
[1773594480099,0.13986655,71450.0,71435.0,0.09980202]
[1773594480298,0.07019415,71455.0,71438.0,0.06009897]
[1773594480520,0.07019415,71455.0,71438.0,0.06048237]
[1773594481220,0.06997552,71454.0,71438.0,0.06048237]
[1773594481741,0.00022001,71456.0,71444.0,0.00242697]
[1773594482066,0.00022001,71459.0,71446.0,0.00206181]
[1773594482280,0.00022001,71459.0,71448.0,0.05873326]
[1773594483991,0.00022001,71459.0,71449.0,0.06997998]
[1773594484551,0.00022001,71459.0,71449.0,0.07010858]
[1773594484998,0.00022001,71453.0,71449.0,0.07010858]
[1773594488357,0.00022001,71453.0,71449.0,0.00134938]
[1773594488569,0.00022001,71459.0,71449.0,0.0001286]
[1773594499199,0.00022001,71461.0,71449.0,0.0001286]
[1773594499400,0.06995882,71471.0,71456.0,0.05870048]
[1773594499583,0.06995944,71470.0,71457.0,0.0014]
[1773594499785,0.06995954,71470.0,71457.0,0.0014]
[1773594500599,0.00057744,71466.0,71458.0,0.06997117]
[1773594502709,0.06908289,71475.0,71458.0,0.06997117]
[1773594502906,0.06908289,71475.0,71460.0,0.05870048]
[1773594503498,0.06908289,71475.0,71461.0,0.0014]
[1773594503939,0.06908289,71475.0,71460.0,0.05870048]
[1773594504142,0.06908289,71475.0,71461.0,0.0014]
[1773594504915,0.06908289,71475.0,71461.0,0.06996823]
[1773594505114,0.06908289,71475.0,71462.0,0.0014]
[1773594505682,0.06908289,71475.0,71463.0,0.0014]
[1773594506084,0.06908289,71475.0,71464.0,0.0014]
[1773594506366,0.0693029,71475.0,71464.0,0.0014]
[1773594506526,0.0693029,71475.0,71461.0,0.06996823]
[1773594506738,0.0693029,71475.0,71462.0,0.0014]
[1773594507160,0.0693029,71475.0,71463.0,0.0014]
[1773594507538,0.0693029,71475.0,71461.0,0.06996823]
[1773594507756,0.0693029,71475.0,71462.0,0.0014]
[1773594508138,0.0693029,71475.0,71463.0,0.0014]
[1773594508758,0.0693029,71475.0,71464.0,0.0014]
[1773594508960,0.0699555,71474.0,71458.0,0.14936]
[1773594509164,0.06908289,71471.0,71459.0,0.06996997]
[1773594509362,0.06908289,71471.0,71460.0,0.0014]
[1773594509730,0.06908289,71471.0,71460.0,0.05870048]
[1773594509968,0.06908289,71471.0,71461.0,0.0014]
[1773594511007,0.06995576,71474.0,71461.0,0.0014]
[1773594511220,0.07017484,71475.0,71462.0,0.06996725]
[1773594511540,0.0693029,71475.0,71462.0,0.06996725]
[1773594512795,0.00022001,71475.0,71465.0,0.05870048]
[1773594512997,0.00012001,71475.0,71465.0,0.05870048]
[1773594513671,0.00012001,71475.0,71466.0,0.06996333]
[1773594513871,0.00012001,71475.0,71467.0,0.0014]
[1773594514486,0.1262798,71479.0,71467.0,0.0014]
[1773594514657,0.06353922,71478.0,71469.0,0.05870048]
[1773594515051,0.06353922,71478.0,71467.0,0.0014]
[1773594515274,0.06353922,71478.0,71468.0,0.05870048]
[1773594517489,0.13349166,71478.0,71468.0,0.06996138]
[1773594520778,0.13349166,71478.0,71468.0,0.12866186]
[1773594520988,0.13371167,71478.0,71468.0,0.12866186]
[1773594522802,0.07017245,71478.0,71468.0,0.12866186]
[1773594523010,0.07017245,71478.0,71468.0,0.12901929]
[1773594525983,0.00022001,71478.0,71468.0,0.12901929]
[1773594526715,0.00022001,71478.0,71468.0,0.00035743]
[1773594526934,0.06353922,71477.0,71467.0,0.0014]
[1773594527143,0.06389665,71477.0,71468.0,0.0014]
[1773594527346,0.06389665,71477.0,71469.0,0.0014]
[1773594527554,0.06389665,71477.0,71470.0,0.0014]
[1773594527992,0.06995355,71476.0,71470.0,0.0014]
[1773594528291,0.06353922,71475.0,71470.0,0.0014]
[1773594528691,0.06353922,71475.0,71466.0,0.06996316]
[1773594528896,0.06353922,71475.0,71471.0,0.0014]
[1773594531108,0.06353922,71475.0,71465.0,0.06996419]
[1773594531109,0.06353922,71474.0,71472.0,1e-08]
[1773594531320,0.06353922,71474.0,71463.0,0.0601174]
[1773594531539,0.06353922,71474.0,71464.0,0.0014]
[1773594534223,0.06403129,71473.0,71464.0,0.0014]
[1773594534430,0.06403129,71473.0,71464.0,0.07136524]
[1773594534952,0.06995355,71476.0,71464.0,0.07136524]
[1773594535645,0.13398484,71476.0,71464.0,0.07136524]
[1773594536042,0.06995355,71476.0,71464.0,0.06996524]
[1773594536243,0.06403129,71475.0,71465.0,0.0014]
[1773594537842,0.06403129,71475.0,71466.0,0.0014]
[1773594541962,0.06403129,71474.0,71463.0,0.0601174]
[1773594542245,0.06403129,71474.0,71467.0,0.0014]
[1773594543468,0.06403129,71474.0,71463.0,0.0601174]
[1773594543630,0.06403129,71474.0,71464.0,0.0014]
[1773594544221,0.06403129,71474.0,71465.0,0.06996431]
[1773594545514,0.06403129,71474.0,71466.0,0.0002]
[1773594545899,0.06403129,71473.0,71466.0,0.0002]
[1773594547018,0.06403129,71473.0,71466.0,0.07016304]
[1773594549390,0.069954,71476.0,71466.0,0.07016304]
[1773594550690,0.13398529,71476.0,71466.0,0.07016304]
[1773594551448,0.1339859,71475.0,71466.0,0.07016304]
[1773594551654,0.1339859,71475.0,71462.0,0.02499025]
[1773594551823,0.1339859,71475.0,71463.0,0.06996627]
[1773594552950,0.1339859,71475.0,71464.0,0.0014]
[1773594553763,0.06403129,71475.0,71465.0,0.06996431]
[1773594554833,0.13398586,71475.0,71465.0,0.06996431]
[1773594555237,0.13420587,71475.0,71465.0,0.06996431]
[1773594559193,0.07017458,71475.0,71465.0,0.06996431]
[1773594559420,0.06403129,71474.0,71461.0,0.07009495]
[1773594560567,0.06403129,71474.0,71462.0,0.0014]
[1773594560759,0.06403129,71474.0,71463.0,0.0014]
[1773594561112,0.06995648,71473.0,71461.0,0.07009495]
[1773594561290,0.06403129,71472.0,71464.0,0.0014]
[1773594561805,0.06403129,71472.0,71461.0,0.07009495]
[1773594561806,0.06403129,71472.0,71465.0,0.0014]
[1773594562234,0.06403129,71472.0,71466.0,0.0014]
[1773594562421,0.06403129,71472.0,71461.0,0.07009495]
[1773594562622,0.06995648,71473.0,71461.0,0.07009495]
[1773594563075,0.13196247,71473.0,71461.0,0.07009495]
[1773594563209,0.13196247,71473.0,71463.0,0.06996627]
[1773594563871,0.13196247,71473.0,71464.0,0.0014]
[1773594564368,0.06200599,71473.0,71464.0,0.0014]
[1773594564878,0.06995648,71474.0,71464.0,0.0014]
[1773594565028,0.07017479,71475.0,71464.0,0.0014]
[1773594565453,0.07017479,71475.0,71465.0,0.06996431]
[1773594567991,0.06200599,71474.0,71462.0,0.0002]
[1773594568194,0.06200599,71474.0,71462.0,0.07016711]
[1773594569525,0.06200599,71474.0,71463.0,0.0014]
[1773594569725,0.06200599,71474.0,71464.0,0.0014]
[1773594570107,0.06995648,71473.0,71462.0,0.07016711]
[1773594570310,0.06200599,71472.0,71463.0,0.0014]
[1773594570706,0.06200599,71472.0,71464.0,0.0014]
[1773594571105,0.06200599,71472.0,71465.0,0.0014]
[1773594571830,0.06995621,71474.0,71465.0,0.0014]
[1773594572034,0.06995621,71474.0,71466.0,0.0014]
[1773594577196,0.00022001,71479.0,71466.0,0.0014]
[1773594577197,0.07016715,71483.0,71467.0,0.00493831]
[1773594577393,0.07027434,71483.0,71470.0,0.05867763]
[1773594577641,0.0003272,71483.0,71471.0,0.06995844]
[1773594577814,0.0003272,71483.0,71472.0,0.0014]
[1773594578820,0.00022001,71475.0,71472.0,0.0014]
[1773594581351,0.13228033,71483.0,71472.0,0.07135715]
[1773594582215,0.11228033,71483.0,71472.0,0.07135715]
[1773594583667,0.11228033,71483.0,71472.0,0.0014]
[1773594584813,0.06200599,71482.0,71470.0,0.06995857]
[1773594584948,0.06994865,71481.0,71465.0,0.06996431]
[1773594585148,0.06596868,71481.0,71465.0,0.06996431]
[1773594585540,0.06456869,71481.0,71465.0,0.06996431]
[1773594586053,0.06456869,71481.0,71466.0,0.0014]
[1773594586253,0.00139999,71480.0,71466.0,0.0014]
[1773594586692,0.00139999,71480.0,71467.0,0.0014]
[1773594587416,0.00139999,71480.0,71468.0,0.06996138]
[1773594589508,0.05049435,71483.0,71468.0,0.06996138]
[1773594593018,0.05867763,71480.0,71464.0,0.07016474]
[1773594593216,0.061306,71479.0,71464.0,0.07016474]
[1773594594584,0.061306,71479.0,71465.0,0.0014]
[1773594595772,0.06995159,71478.0,71465.0,0.07136376]
[1773594597670,0.06995159,71481.0,71465.0,0.0014]
[1773594597868,0.061306,71480.0,71465.0,0.0014]
[1773594599127,0.061306,71480.0,71464.0,0.0002]
[1773594599451,0.061306,71480.0,71465.0,0.0002]
[1773594600061,0.061306,71478.0,71465.0,0.0002]
[1773594600257,0.061306,71478.0,71466.0,0.0014]
[1773594600709,0.061306,71478.0,71461.0,0.0700955]
[1773594601518,0.061306,71478.0,71456.0,0.0002]
[1773594601960,0.061306,71478.0,71454.0,0.0003274]
[1773594601961,0.061106,71469.0,71454.0,0.0003274]
[1773594602109,0.0609423,71467.0,71455.0,0.0014]
[1773594602435,0.0609423,71467.0,71451.0,0.0002]
[1773594603220,0.0609423,71467.0,71451.0,0.07017786]
[1773594603582,0.0609423,71467.0,71449.0,0.0002]
[1773594603837,0.0609423,71467.0,71447.0,0.0003274]
[1773594603983,0.0609423,71467.0,71445.0,5e-05]
[1773594603984,0.06093161,71465.0,71445.0,5e-05]
[1773594604390,0.06093161,71465.0,71442.0,0.06998677]
[1773594605234,0.0319366,71459.0,71441.0,0.07018762]
[1773594605460,0.06093161,71458.0,71441.0,0.07018762]
[1773594605710,0.06093161,71458.0,71442.0,0.0014]
[1773594606455,0.06093161,71456.0,71443.0,0.0014]
[1773594606952,0.06093161,71456.0,71441.0,0.07018715]
[1773594607156,0.06093161,71456.0,71444.0,0.0014]
[1773594608425,0.06093161,71454.0,71444.0,0.0014]
[1773594609273,0.06093161,71454.0,71439.0,0.18456]
[1773594609274,0.05867763,71454.0,71434.0,0.0002]
[1773594609489,0.06093161,71453.0,71435.0,0.09670363]
[1773594610241,0.06093161,71453.0,71435.0,0.02666]
[1773594610848,0.06093161,71451.0,71435.0,0.02666]
[1773594611041,0.06093161,71449.0,71434.0,0.0002]
[1773594612798,0.06998096,71448.0,71434.0,0.0002]
[1773594612970,0.06093161,71447.0,71435.0,0.0014]
[1773594613556,0.06093161,71447.0,71434.0,0.07019435]
[1773594613759,0.06093161,71447.0,71435.0,0.0014]
[1773594614675,0.06093161,71447.0,71435.0,0.0016]
[1773594615074,0.06998292,71446.0,71435.0,0.0016]
[1773594616661,0.06093161,71454.0,71435.0,0.0016]
[1773594616662,0.06997215,71457.0,71436.0,0.05867763]
[1773594616866,0.06997508,71456.0,71437.0,0.0014]
[1773594617065,0.13090669,71456.0,71437.0,0.0014]
[1773594617284,0.13090669,71456.0,71438.0,0.06999076]
[1773594619693,0.06997508,71456.0,71438.0,0.06999076]
[1773594619908,0.06997508,71456.0,71439.0,0.00321338]
[1773594621302,0.06857611,71456.0,71439.0,0.00321338]
[1773594621685,0.06857611,71456.0,71439.0,0.07320303]
[1773594622697,0.06857611,71456.0,71439.0,0.06998965]
[1773594622885,0.06857611,71456.0,71439.0,0.07018965]
[1773594623224,0.06023511,71455.0,71439.0,0.07018965]
[1773594624085,0.06023511,71449.0,71440.0,0.0014]
[1773594624282,0.06023511,71449.0,71441.0,0.0014]
[1773594625305,0.06023511,71449.0,71442.0,0.0014]
[1773594625709,0.06023511,71449.0,71439.0,0.0002]
[1773594625910,0.06023511,71449.0,71443.0,0.0014]
[1773594626106,0.06998096,71448.0,71443.0,0.0014]
[1773594626313,0.06023511,71447.0,71444.0,0.0014]
[1773594626833,0.06023511,71447.0,71445.0,0.0014]
[1773594628455,0.06998292,71446.0,71445.0,0.0014]
[1773594629622,0.07098292,71446.0,71445.0,0.0014]
[1773594630342,0.07080334,71446.0,71445.0,0.0014]
[1773594640259,0.06997606,71453.0,71445.0,0.0014]
[1773594640460,0.06023511,71452.0,71445.0,0.0014]
[1773594640792,0.001,71446.0,71445.0,0.0014]
[1773594641800,0.06023511,71452.0,71445.0,0.0014]
[1773594642156,0.06123511,71452.0,71445.0,0.0014]
[1773594642389,0.06997802,71451.0,71445.0,0.0014]
[1773594642795,0.001,71446.0,71445.0,0.0014]
[1773594643064,0.13021313,71451.0,71445.0,0.0014]
[1773594643767,0.13121313,71451.0,71445.0,0.0014]
[1773594649710,0.13121313,71451.0,71445.0,0.0016]
[1773594649912,0.13143314,71451.0,71445.0,0.0016]
[1773594653601,0.06013511,71450.0,71440.0,5e-05]
[1773594654323,0.06013511,71450.0,71439.0,0.0002]
[1773594654774,0.06013511,71450.0,71440.0,0.0014]
[1773594655661,0.06997998,71449.0,71440.0,0.0014]
[1773594657673,0.07097998,71449.0,71440.0,0.0014]
[1773594658507,0.06013511,71448.0,71441.0,0.0014]
[1773594659821,0.06113511,71448.0,71441.0,0.0014]
[1773594659988,0.06998194,71447.0,71441.0,0.0014]
[1773594662231,0.07098194,71447.0,71441.0,0.0014]
[1773594665034,0.06998167,71448.0,71441.0,0.0014]
[1773594666969,0.06997998,71449.0,71441.0,0.0014]
[1773594667144,0.07019999,71450.0,71441.0,0.0014]
[1773594667756,0.07019999,71450.0,71441.0,0.0016]
[1773594669560,0.00022001,71450.0,71441.0,0.0016]
[1773594671069,0.00022001,71450.0,71441.0,0.07158744]
[1773594676401,0.00073801,71451.0,71441.0,0.07158744]
[1773594679388,0.00022001,71456.0,71451.0,0.00073801]
[1773594679588,0.00022001,71456.0,71452.0,0.0014]
[1773594679795,0.00022001,71456.0,71453.0,0.0014]
[1773594686598,0.07019316,71456.0,71453.0,0.0014]
[1773594686912,0.05733513,71455.0,71444.0,0.06998446]
[1773594687099,0.05733513,71455.0,71442.0,0.06998616]
[1773594688138,0.05733513,71455.0,71443.0,0.0014]
[1773594689436,0.06997508,71454.0,71444.0,0.06998488]
[1773594689780,0.1287102,71454.0,71444.0,0.06998488]
[1773594694564,0.05873512,71453.0,71444.0,0.06998488]
[1773594694969,0.06997508,71454.0,71444.0,0.06998488]
[1773594695383,0.06997508,71454.0,71441.0,0.06998782]
[1773594696715,0.06997508,71454.0,71442.0,0.0014]
[1773594697132,0.07019509,71454.0,71443.0,0.06998586]
[1773594704119,0.07019509,71454.0,71443.0,0.01425752]
[1773594707956,0.07019509,71454.0,71443.0,0.06528183]
[1773594710926,0.07019509,71454.0,71444.0,0.05102431]
[1773594714078,0.07019509,71454.0,71445.0,0.0699839]
[1773594715263,0.07019509,71455.0,71445.0,0.0699839]
[1773594715471,0.00022001,71463.0,71446.0,0.0513978]
[1773594715675,0.00022001,71463.0,71451.0,0.0513978]
[1773594715825,0.00022001,71463.0,71453.0,0.0513978]
[1773594716884,0.00022001,71463.0,71450.0,0.05872601]
[1773594717084,0.00022001,71463.0,71451.0,0.0513978]
[1773594717687,1e-08,71465.0,71453.0,0.0513978]
[1773594717845,1e-08,71465.0,71452.0,0.06997704]
[1773594717846,1e-08,71465.0,71456.0,0.0513978]
[1773594718042,1e-08,71465.0,71457.0,0.0014]
[1773594720043,1e-08,71465.0,71458.0,0.06997117]
[1773594720259,1e-08,71465.0,71459.0,0.0513978]
[1773594720471,1e-08,71465.0,71458.0,0.06997117]
[1773594721525,0.04625877,71464.0,71459.0,0.0014]
[1773594721729,0.04471891,71464.0,71458.0,0.06997117]
[1773594721930,0.04331892,71464.0,71454.0,0.06997508]
[1773594722127,0.04087624,71464.0,71450.0,0.069979]
[1773594722714,0.04087624,71464.0,71451.0,0.0014]
[1773594723312,0.04087624,71464.0,71452.0,0.0014]
[1773594723716,0.11084195,71464.0,71452.0,0.0014]
[1773594724108,0.11084195,71464.0,71450.0,0.069979]
[1773594724474,0.11084195,71464.0,71451.0,0.0014]
[1773594724656,0.07032301,71464.0,71450.0,0.069979]
[1773594724872,0.07032301,71464.0,71448.0,0.02470704]
[1773594724873,0.04765876,71463.0,71448.0,0.02470704]
[1773594725005,0.04765876,71463.0,71444.0,0.1846]
[1773594725006,0.04765876,71459.0,71444.0,0.25458408]
[1773594725213,0.04765876,71459.0,71444.0,0.0460301]
[1773594726255,0.04765876,71457.0,71445.0,0.0014]
[1773594726855,0.04765876,71457.0,71445.0,0.00152939]
[1773594728069,0.04765876,71457.0,71446.0,0.0014]
[1773594728230,0.11763189,71456.0,71445.0,0.00012939]
[1773594728635,0.11763189,71456.0,71446.0,0.0014]
[1773594728832,0.11763189,71456.0,71446.0,0.00152939]
[1773594729036,0.06997313,71456.0,71447.0,0.0014]
[1773594729240,0.11763189,71456.0,71447.0,0.0014]
[1773594729872,0.11763189,71456.0,71447.0,0.00012939]
[1773594730072,0.11763189,71456.0,71448.0,0.0014]
[1773594730482,0.11763189,71456.0,71449.0,0.0014]
[1773594730684,0.06997313,71456.0,71447.0,0.00012939]
[1773594731963,0.06997313,71456.0,71448.0,0.0014]
[1773594732897,0.06997313,71457.0,71448.0,0.0014]
[1773594733098,0.06997313,71457.0,71448.0,0.00171959]
[1773594733854,0.06997313,71457.0,71448.0,0.05311739]
[1773594734069,0.06997313,71457.0,71448.0,0.00171959]
[1773594744434,0.04866423,71456.0,71446.0,0.0701091]
[1773594745597,0.04866423,71456.0,71447.0,0.0014]
[1773594745976,0.04866423,71456.0,71446.0,0.0701091]
[1773594746197,0.04866423,71456.0,71447.0,0.0014]
[1773594746531,0.0699741,71455.0,71446.0,0.0701091]
[1773594746828,0.0699741,71455.0,71448.0,0.0014]
[1773594747042,0.0699741,71455.0,71446.0,0.0701091]